[Event "Titled Tuesday Blitz May 4 2021"]
[White "Shukhman, Anna"]
[Black "Porter, Ryan W"]
[WhiteFideId "54180058"]
[BlackFideId "2011239"]
[WhiteElo "1628"]
[BlackElo "2388"]
[Result "1-0"]
[Round "10"]
[TimeControl "180+1"]
[Date "2021.05.04"]
[WhiteClock "0:00:14"]
[BlackClock "0:00:05"]

1. e4 {[%clk 0:03:00]}  d6 {[%clk 0:03:00]} 2. d4 {[%clk 0:03:00]}  Nf6 {[%clk 0:03:01]} 3. Nc3 {[%clk 0:02:59]}  g6 {[%clk 0:03:01]} 4. h4 {[%clk 0:02:54]}  h5 {[%clk 0:02:58]} 5. f3 {[%clk 0:02:52]}  Bg7 {[%clk 0:02:55]} 6. Be3 {[%clk 0:02:52]}  a6 {[%clk 0:02:52]} 7. Qd2 {[%clk 0:02:51]}  Nbd7 {[%clk 0:02:46]} 8. O-O-O {[%clk 0:02:47]}  b5 {[%clk 0:02:46]} 9. e5 {[%clk 0:02:43]}  b4 {[%clk 0:02:40]} 10. exf6 {[%clk 0:02:32]}  bxc3 {[%clk 0:02:39]} 11. Qxc3 {[%clk 0:02:31]}  Nxf6 {[%clk 0:02:36]} 12. Bc4 {[%clk 0:02:30]}  c6 {[%clk 0:02:27]} 13. Nh3 {[%clk 0:02:20]}  Nd5 {[%clk 0:02:19]} 14. Bxd5 {[%clk 0:02:19]}  cxd5 {[%clk 0:02:20]} 15. Qc6+ {[%clk 0:02:19]}  Bd7 {[%clk 0:02:20]} 16. Qxd5 {[%clk 0:02:19]}  O-O {[%clk 0:02:11]} 17. Rdg1 {[%clk 0:02:07]}  Be6 {[%clk 0:02:06]} 18. Qe4 {[%clk 0:02:03]}  Bxa2 {[%clk 0:01:51]} 19. g4 {[%clk 0:02:02]}  Qa5 {[%clk 0:01:47]} 20. gxh5 {[%clk 0:01:59]}  Bd5 {[%clk 0:01:46]} 21. Qd3 {[%clk 0:01:57]}  Qa1+ {[%clk 0:01:34]} 22. Kd2 {[%clk 0:01:57]}  Qxb2 {[%clk 0:01:35]} 23. hxg6 {[%clk 0:01:50]}  Qb4+ {[%clk 0:01:33]} 24. Kc1 {[%clk 0:01:20]}  f5 {[%clk 0:01:24]} 25. Ng5 {[%clk 0:01:11]}  f4 {[%clk 0:01:14]} 26. Bf2 {[%clk 0:01:09]}  Bc4 {[%clk 0:00:58]} 27. Qe4 {[%clk 0:01:05]}  Qa3+ {[%clk 0:00:53]} 28. Kd2 {[%clk 0:01:03]}  Qb4+ {[%clk 0:00:52]} 29. c3 {[%clk 0:01:00]}  Qb2+ {[%clk 0:00:50]} 30. Qc2 {[%clk 0:00:59]}  Rab8 {[%clk 0:00:48]} 31. Rb1 {[%clk 0:00:41]}  Qxc2+ {[%clk 0:00:35]} 32. Kxc2 {[%clk 0:00:41]}  Bf6 {[%clk 0:00:34]} 33. Ne4 {[%clk 0:00:39]}  Kg7 {[%clk 0:00:30]} 34. h5 {[%clk 0:00:39]}  Rxb1 {[%clk 0:00:17]} 35. Rxb1 {[%clk 0:00:35]}  Rh8 {[%clk 0:00:17]} 36. Nxf6 {[%clk 0:00:34]}  Kxf6 {[%clk 0:00:15]} 37. Rh1 {[%clk 0:00:26]}  Bd5 {[%clk 0:00:14]} 38. Rh3 {[%clk 0:00:21]}  Be6 {[%clk 0:00:10]} 39. Rh4 {[%clk 0:00:21]}  Kg5 {[%clk 0:00:10]} 40. g7 {[%clk 0:00:20]}  Rxh5 {[%clk 0:00:10]} 41. Rxh5+ {[%clk 0:00:18]}  Kxh5 {[%clk 0:00:10]} 42. Kd3 {[%clk 0:00:17]}  Bd5 {[%clk 0:00:09]} 43. c4 {[%clk 0:00:16]}  Bf7 {[%clk 0:00:09]} 44. c5 {[%clk 0:00:15]}  dxc5 {[%clk 0:00:08]} 45. dxc5 {[%clk 0:00:15]}  Kg6 {[%clk 0:00:09]} 46. Bd4 {[%clk 0:00:15]}  Kh7 {[%clk 0:00:09]} 47. Ke4 {[%clk 0:00:15]}  Be6 {[%clk 0:00:07]} 48. Kxf4 {[%clk 0:00:15]}  a5 {[%clk 0:00:07]} 49. Ke5 {[%clk 0:00:15]}  Bc8 {[%clk 0:00:07]} 50. Kd5 {[%clk 0:00:15]}  a4 {[%clk 0:00:07]} 51. Kc4 {[%clk 0:00:15]}  a3 {[%clk 0:00:06]} 52. Kb3 {[%clk 0:00:15]}  Bb7 {[%clk 0:00:06]} 53. f4 {[%clk 0:00:14]}  Kg8 {[%clk 0:00:05]} 54. Kxa3 {[%clk 0:00:15]}  Bc6 {[%clk 0:00:04]} 55. Kb4 {[%clk 0:00:15]}  e5 {[%clk 0:00:05]} 56. Bxe5 {[%clk 0:00:14]} 1-0


[Site "https://www.chess.com"]

[Event "Titled Tuesday Blitz May 4 2021"]
[White "Skatchkov, Pavel"]
[Black "Bologan, Victor"]
[WhiteFideId "4121848"]
[BlackFideId "13900048"]
[WhiteElo "2476"]
[BlackElo "2511"]
[Result "0-1"]
[Round "10"]
[TimeControl "180+1"]
[Date "2021.05.04"]
[WhiteClock "0:01:49"]
[BlackClock "0:01:45"]

1. d4 {[%clk 0:03:00]}  d6 {[%clk 0:02:59]} 2. e4 {[%clk 0:02:59]}  Nf6 {[%clk 0:02:58]} 3. Nc3 {[%clk 0:02:59]}  e5 {[%clk 0:02:58]} 4. Nf3 {[%clk 0:02:58]}  Nbd7 {[%clk 0:02:57]} 5. Bc4 {[%clk 0:02:59]}  Be7 {[%clk 0:02:56]} 6. O-O {[%clk 0:03:00]}  O-O {[%clk 0:02:56]} 7. a4 {[%clk 0:03:00]}  c6 {[%clk 0:02:55]} 8. Re1 {[%clk 0:03:01]}  a5 {[%clk 0:02:55]} 9. h3 {[%clk 0:03:01]}  h6 {[%clk 0:02:53]} 10. Bb3 {[%clk 0:02:58]}  Re8 {[%clk 0:02:51]} 11. Nh4 {[%clk 0:02:56]}  exd4 {[%clk 0:02:51]} 12. Qxd4 {[%clk 0:02:56]}  Nc5 {[%clk 0:02:50]} 13. Nf5 {[%clk 0:02:51]}  Bxf5 {[%clk 0:02:45]} 14. exf5 {[%clk 0:02:51]}  d5 {[%clk 0:02:45]} 15. Bf4 {[%clk 0:02:45]}  Nxb3 {[%clk 0:02:36]} 16. cxb3 {[%clk 0:02:46]}  Bb4 {[%clk 0:02:35]} 17. Be5 {[%clk 0:02:37]}  c5 {[%clk 0:02:33]} 18. Bxf6 {[%clk 0:02:35]}  cxd4 {[%clk 0:02:29]} 19. Bxd8 {[%clk 0:02:35]}  Rexd8 {[%clk 0:02:27]} 20. Nb5 {[%clk 0:02:33]}  Bxe1 {[%clk 0:02:26]} 21. Rxe1 {[%clk 0:02:34]}  d3 {[%clk 0:02:24]} 22. Rd1 {[%clk 0:02:34]}  Rac8 {[%clk 0:02:23]} 23. Rxd3 {[%clk 0:02:27]}  Rc2 {[%clk 0:02:23]} 24. Nc3 {[%clk 0:02:26]}  d4 {[%clk 0:02:17]} 25. Nb5 {[%clk 0:02:27]}  Re8 {[%clk 0:02:11]} 26. Nxd4 {[%clk 0:02:26]}  Re1+ {[%clk 0:02:09]} 27. Kh2 {[%clk 0:02:26]}  Rxf2 {[%clk 0:02:09]} 28. Nf3 {[%clk 0:02:17]}  Ree2 {[%clk 0:02:05]} 29. Nh4 {[%clk 0:02:17]}  Rxb2 {[%clk 0:02:04]} 30. Kg3 {[%clk 0:02:15]}  Rfd2 {[%clk 0:02:03]} 31. Re3 {[%clk 0:02:14]}  Kf8 {[%clk 0:02:01]} 32. Kf3 {[%clk 0:02:08]}  Rbc2 {[%clk 0:01:59]} 33. g4 {[%clk 0:02:08]}  Rc7 {[%clk 0:01:51]} 34. Ng2 {[%clk 0:02:07]}  Rdc2 {[%clk 0:01:51]} 35. Re5 {[%clk 0:01:58]}  R2c3+ {[%clk 0:01:49]} 36. Ne3 {[%clk 0:01:58]}  Rxb3 {[%clk 0:01:47]} 37. Ke2 {[%clk 0:01:49]}  Re7 {[%clk 0:01:45]} 0-1


[Site "https://www.chess.com"]

[Event "Titled Tuesday Blitz May 4 2021"]
[White "Sokolov, Andrey M."]
[Black "Smietanska, Wiktoria"]
[WhiteFideId "4171438"]
[BlackFideId "21869359"]
[WhiteElo "2349"]
[BlackElo "1780"]
[Result "0-1"]
[Round "10"]
[TimeControl "180+1"]
[Date "2021.05.04"]
[WhiteClock "0:00:05"]
[BlackClock "0:01:10"]

1. d4 {[%clk 0:03:00]}  d5 {[%clk 0:02:59]} 2. Bf4 {[%clk 0:03:00]}  c5 {[%clk 0:02:55]} 3. e3 {[%clk 0:02:59]}  Nc6 {[%clk 0:02:55]} 4. c3 {[%clk 0:02:58]}  Nf6 {[%clk 0:02:53]} 5. Nd2 {[%clk 0:02:58]}  Bf5 {[%clk 0:02:53]} 6. Ngf3 {[%clk 0:02:53]}  Qb6 {[%clk 0:02:52]} 7. Qb3 {[%clk 0:02:52]}  c4 {[%clk 0:02:51]} 8. Qxb6 {[%clk 0:02:52]}  axb6 {[%clk 0:02:52]} 9. a3 {[%clk 0:02:44]}  b5 {[%clk 0:02:51]} 10. Rc1 {[%clk 0:02:44]}  e6 {[%clk 0:02:50]} 11. Be2 {[%clk 0:02:43]}  Be7 {[%clk 0:02:49]} 12. h3 {[%clk 0:02:42]}  O-O {[%clk 0:02:47]} 13. Ne5 {[%clk 0:02:41]}  Nxe5 {[%clk 0:02:45]} 14. Bxe5 {[%clk 0:02:41]}  Ne4 {[%clk 0:02:45]} 15. g4 {[%clk 0:02:29]}  Nxd2 {[%clk 0:02:43]} 16. Kxd2 {[%clk 0:02:29]}  Bg6 {[%clk 0:02:42]} 17. f3 {[%clk 0:02:25]}  f6 {[%clk 0:02:41]} 18. Bg3 {[%clk 0:02:23]}  Bd8 {[%clk 0:02:40]} 19. Bd6 {[%clk 0:02:20]}  Re8 {[%clk 0:02:39]} 20. h4 {[%clk 0:02:19]}  e5 {[%clk 0:02:34]} 21. h5 {[%clk 0:02:12]}  Bf7 {[%clk 0:02:32]} 22. f4 {[%clk 0:02:04]}  e4 {[%clk 0:02:28]} 23. Rcg1 {[%clk 0:01:57]}  Be6 {[%clk 0:02:24]} 24. g5 {[%clk 0:01:52]}  f5 {[%clk 0:02:24]} 25. g6 {[%clk 0:01:50]}  h6 {[%clk 0:02:24]} 26. Bd1 {[%clk 0:01:39]}  Be7 {[%clk 0:02:20]} 27. Bxe7 {[%clk 0:01:32]}  Rxe7 {[%clk 0:02:19]} 28. Bc2 {[%clk 0:01:32]}  Rd7 {[%clk 0:02:10]} 29. Ra1 {[%clk 0:01:31]}  Rd6 {[%clk 0:02:10]} 30. a4 {[%clk 0:00:54]}  Rda6 {[%clk 0:02:06]} 31. a5 {[%clk 0:00:41]}  Rxa5 {[%clk 0:02:03]} 32. Rxa5 {[%clk 0:00:41]}  Rxa5 {[%clk 0:02:04]} 33. Rb1 {[%clk 0:00:38]}  Ra2 {[%clk 0:02:02]} 34. Kc1 {[%clk 0:00:38]}  Kf8 {[%clk 0:02:01]} 35. b3 {[%clk 0:00:34]}  Bd7 {[%clk 0:01:57]} 36. bxc4 {[%clk 0:00:29]}  dxc4 {[%clk 0:01:56]} 37. Rb2 {[%clk 0:00:27]}  Rxb2 {[%clk 0:01:55]} 38. Kxb2 {[%clk 0:00:26]}  Ke7 {[%clk 0:01:55]} 39. Ka3 {[%clk 0:00:26]}  b6 {[%clk 0:01:51]} 40. Kb4 {[%clk 0:00:26]}  Kd6 {[%clk 0:01:45]} 41. Bd1 {[%clk 0:00:25]}  Kc6 {[%clk 0:01:43]} 42. Be2 {[%clk 0:00:24]}  Be6 {[%clk 0:01:42]} 43. Bf1 {[%clk 0:00:24]}  Bd5 {[%clk 0:01:39]} 44. Bh3 {[%clk 0:00:24]}  Be6 {[%clk 0:01:38]} 45. d5+ {[%clk 0:00:22]}  Kxd5 {[%clk 0:01:37]} 46. Kxb5 {[%clk 0:00:22]}  Bd7+ {[%clk 0:01:34]} 47. Kxb6 {[%clk 0:00:22]}  Kd6 {[%clk 0:01:29]} 48. Bf1 {[%clk 0:00:21]}  Be6 {[%clk 0:01:28]} 49. Kb5 {[%clk 0:00:20]}  Bd7+ {[%clk 0:01:21]} 50. Kxc4 {[%clk 0:00:19]}  Ba4 {[%clk 0:01:21]} 51. Kd4 {[%clk 0:00:19]}  Bd1 {[%clk 0:01:21]} 52. Bc4 {[%clk 0:00:16]}  Bxh5 {[%clk 0:01:20]} 53. Bf7 {[%clk 0:00:15]}  Bg4 {[%clk 0:01:19]} 54. c4 {[%clk 0:00:15]}  h5 {[%clk 0:01:19]} 55. c5+ {[%clk 0:00:14]}  Kc6 {[%clk 0:01:19]} 56. Bc4 {[%clk 0:00:11]}  h4 {[%clk 0:01:17]} 57. Bf1 {[%clk 0:00:10]}  Bh5 {[%clk 0:01:17]} 58. Bh3 {[%clk 0:00:09]}  Bxg6 {[%clk 0:01:17]} 59. Ke5 {[%clk 0:00:06]}  Kxc5 {[%clk 0:01:16]} 60. Ke6 {[%clk 0:00:05]}  Kc4 {[%clk 0:01:10]} 61. Ke7 {[%clk 0:00:05]}  Kd3 {[%clk 0:01:10]} 0-1


[Site "https://www.chess.com"]

[Event "Titled Tuesday Blitz May 4 2021"]
[White "Song, Michael"]
[Black "Kazakouski, Valery"]
[WhiteFideId "2613190"]
[BlackFideId "13507443"]
[WhiteElo "2274"]
[BlackElo "2546"]
[Result "1-0"]
[Round "10"]
[TimeControl "180+1"]
[Date "2021.05.04"]
[WhiteClock "0:00:03"]
[BlackClock "0:00:02"]

1. d4 {[%clk 0:03:00]}  Nf6 {[%clk 0:02:59]} 2. Bg5 {[%clk 0:03:00]}  e6 {[%clk 0:03:00]} 3. Nd2 {[%clk 0:03:00]}  h6 {[%clk 0:03:00]} 4. Bh4 {[%clk 0:02:59]}  c5 {[%clk 0:03:00]} 5. e3 {[%clk 0:02:49]}  cxd4 {[%clk 0:03:00]} 6. exd4 {[%clk 0:02:49]}  Be7 {[%clk 0:03:00]} 7. Ngf3 {[%clk 0:02:49]}  b6 {[%clk 0:03:00]} 8. Bd3 {[%clk 0:02:48]}  Ba6 {[%clk 0:03:00]} 9. Bxa6 {[%clk 0:02:46]}  Nxa6 {[%clk 0:03:00]} 10. c3 {[%clk 0:02:46]}  Nc7 {[%clk 0:02:59]} 11. Qe2 {[%clk 0:02:46]}  d6 {[%clk 0:02:59]} 12. Bxf6 {[%clk 0:02:40]}  Bxf6 {[%clk 0:02:59]} 13. h4 {[%clk 0:02:31]}  Qd7 {[%clk 0:02:55]} 14. a4 {[%clk 0:02:30]}  Qc6 {[%clk 0:02:51]} 15. h5 {[%clk 0:02:19]}  Be7 {[%clk 0:02:36]} 16. Rh3 {[%clk 0:02:06]}  Nd5 {[%clk 0:02:21]} 17. g3 {[%clk 0:01:35]}  Nf6 {[%clk 0:02:17]} 18. Qb5 {[%clk 0:01:33]}  Kd7 {[%clk 0:02:08]} 19. Ke2 {[%clk 0:01:32]}  a6 {[%clk 0:02:07]} 20. Qxc6+ {[%clk 0:01:29]}  Kxc6 {[%clk 0:02:07]} 21. Kd3 {[%clk 0:01:30]}  b5 {[%clk 0:02:05]} 22. Rhh1 {[%clk 0:01:10]}  Rhb8 {[%clk 0:02:04]} 23. a5 {[%clk 0:00:53]}  Kd7 {[%clk 0:01:55]} 24. Ne4 {[%clk 0:00:48]}  Nd5 {[%clk 0:01:53]} 25. b3 {[%clk 0:00:45]}  Rc8 {[%clk 0:01:49]} 26. c4 {[%clk 0:00:33]}  bxc4+ {[%clk 0:01:48]} 27. bxc4 {[%clk 0:00:34]}  Nb4+ {[%clk 0:01:48]} 28. Kc3 {[%clk 0:00:33]}  f5 {[%clk 0:01:14]} 29. Ned2 {[%clk 0:00:31]}  Rab8 {[%clk 0:01:09]} 30. Rhb1 {[%clk 0:00:30]}  Nd5+ {[%clk 0:01:09]} 31. Kd3 {[%clk 0:00:30]}  Nf6 {[%clk 0:01:10]} 32. Rb6 {[%clk 0:00:23]}  Ra8 {[%clk 0:01:03]} 33. Rh1 {[%clk 0:00:12]}  Bd8 {[%clk 0:01:02]} 34. Rb7+ {[%clk 0:00:12]}  Rc7 {[%clk 0:01:01]} 35. Rb2 {[%clk 0:00:11]}  Rca7 {[%clk 0:00:57]} 36. Nb3 {[%clk 0:00:11]}  Kc8 {[%clk 0:00:51]} 37. c5 {[%clk 0:00:11]}  Be7 {[%clk 0:00:31]} 38. cxd6 {[%clk 0:00:11]}  Bxd6 {[%clk 0:00:32]} 39. Rc2+ {[%clk 0:00:11]}  Kd8 {[%clk 0:00:27]} 40. Nc5 {[%clk 0:00:12]}  Bxc5 {[%clk 0:00:27]} 41. Rxc5 {[%clk 0:00:12]}  Rb7 {[%clk 0:00:22]} 42. Ne5 {[%clk 0:00:09]}  Rb3+ {[%clk 0:00:21]} 43. Kc4 {[%clk 0:00:10]}  Rb2 {[%clk 0:00:20]} 44. f3 {[%clk 0:00:09]}  Nd5 {[%clk 0:00:17]} 45. Re1 {[%clk 0:00:06]}  Ke7 {[%clk 0:00:11]} 46. Nc6+ {[%clk 0:00:05]}  Kd6 {[%clk 0:00:11]} 47. Ne5 {[%clk 0:00:04]}  Rc2+ {[%clk 0:00:09]} 48. Kd3 {[%clk 0:00:04]}  Rxc5 {[%clk 0:00:08]} 49. dxc5+ {[%clk 0:00:04]}  Kxc5 {[%clk 0:00:09]} 50. Nf7 {[%clk 0:00:03]}  Re8 {[%clk 0:00:08]} 51. g4 {[%clk 0:00:03]}  fxg4 {[%clk 0:00:08]} 52. fxg4 {[%clk 0:00:04]}  Nf6 {[%clk 0:00:08]} 53. g5 {[%clk 0:00:04]}  Nxh5 {[%clk 0:00:09]} 54. gxh6 {[%clk 0:00:04]}  gxh6 {[%clk 0:00:10]} 55. Nxh6 {[%clk 0:00:04]}  Kb5 {[%clk 0:00:10]} 56. Re5+ {[%clk 0:00:04]}  Ka4 {[%clk 0:00:09]} 57. Rxh5 {[%clk 0:00:05]}  Rd8+ {[%clk 0:00:08]} 58. Kc4 {[%clk 0:00:04]}  Rd5 {[%clk 0:00:09]} 59. Rh1 {[%clk 0:00:02]}  Kxa5 {[%clk 0:00:09]} 60. Ra1+ {[%clk 0:00:03]}  Kb6 {[%clk 0:00:10]} 61. Nf7 {[%clk 0:00:03]}  Rc5+ {[%clk 0:00:10]} 62. Kd4 {[%clk 0:00:04]}  Rd5+ {[%clk 0:00:11]} 63. Ke4 {[%clk 0:00:04]}  a5 {[%clk 0:00:10]} 64. Ne5 {[%clk 0:00:05]}  Kb5 {[%clk 0:00:09]} 65. Nf3 {[%clk 0:00:04]}  a4 {[%clk 0:00:08]} 66. Nd4+ {[%clk 0:00:05]}  Kc4 {[%clk 0:00:07]} 67. Nxe6 {[%clk 0:00:05]}  Ra5 {[%clk 0:00:07]} 68. Rc1+ {[%clk 0:00:04]}  Kb4 {[%clk 0:00:07]} 69. Nd4 {[%clk 0:00:04]}  Ra8 {[%clk 0:00:06]} 70. Rb1+ {[%clk 0:00:04]}  Kc4 {[%clk 0:00:06]} 71. Rc1+ {[%clk 0:00:04]}  Kb4 {[%clk 0:00:07]} 72. Kd3 {[%clk 0:00:04]}  a3 {[%clk 0:00:07]} 73. Rb1+ {[%clk 0:00:03]}  Kc5 {[%clk 0:00:06]} 74. Kc3 {[%clk 0:00:04]}  a2 {[%clk 0:00:06]} 75. Ra1 {[%clk 0:00:04]}  Kd5 {[%clk 0:00:04]} 76. Nc2 {[%clk 0:00:04]}  Kc5 {[%clk 0:00:04]} 77. Kb3 {[%clk 0:00:04]}  Ra7 {[%clk 0:00:02]} 78. Nb4 {[%clk 0:00:03]} 1-0


[Site "https://www.chess.com"]

[Event "Titled Tuesday Blitz May 4 2021"]
[White "Spencenzug"]
[Black "Zhurbinsky, David"]
[BlackFideId "2072904"]
[WhiteElo "2329"]
[BlackElo "2441"]
[Result "1-0"]
[Round "10"]
[TimeControl "180+1"]
[Date "2021.05.04"]
[WhiteClock "0:00:30"]
[BlackClock "0:00:02"]

1. e4 {[%clk 0:03:00]}  e5 {[%clk 0:02:58]} 2. Nf3 {[%clk 0:03:00]}  Nc6 {[%clk 0:02:58]} 3. d4 {[%clk 0:03:00]}  exd4 {[%clk 0:02:59]} 4. Nxd4 {[%clk 0:03:01]}  Bc5 {[%clk 0:02:59]} 5. Nxc6 {[%clk 0:03:01]}  Qf6 {[%clk 0:02:59]} 6. Qf3 {[%clk 0:03:01]}  dxc6 {[%clk 0:02:57]} 7. Nc3 {[%clk 0:03:00]}  Be6 {[%clk 0:02:56]} 8. Be3 {[%clk 0:02:56]}  Bxe3 {[%clk 0:02:49]} 9. Qxe3 {[%clk 0:02:57]}  Ne7 {[%clk 0:02:47]} 10. O-O-O {[%clk 0:02:54]}  Ng6 {[%clk 0:02:42]} 11. g3 {[%clk 0:02:44]}  Ne5 {[%clk 0:02:27]} 12. f4 {[%clk 0:02:32]}  Ng4 {[%clk 0:02:17]} 13. Qe1 {[%clk 0:02:30]}  O-O {[%clk 0:02:04]} 14. h3 {[%clk 0:02:27]}  Nh6 {[%clk 0:01:49]} 15. Bd3 {[%clk 0:01:34]}  b5 {[%clk 0:01:43]} 16. e5 {[%clk 0:01:30]}  Qe7 {[%clk 0:01:39]} 17. g4 {[%clk 0:01:30]}  b4 {[%clk 0:01:38]} 18. Ne4 {[%clk 0:01:27]}  Bxa2 {[%clk 0:01:14]} 19. Ng5 {[%clk 0:01:08]}  a5 {[%clk 0:00:46]} 20. Nxh7 {[%clk 0:00:59]}  Rfd8 {[%clk 0:00:45]} 21. g5 {[%clk 0:00:57]}  Rxd3 {[%clk 0:00:26]} 22. Rxd3 {[%clk 0:00:58]}  Nf5 {[%clk 0:00:19]} 23. Nf6+ {[%clk 0:00:58]}  gxf6 {[%clk 0:00:20]} 24. gxf6 {[%clk 0:00:59]}  Qf8 {[%clk 0:00:13]} 25. Qg1+ {[%clk 0:00:54]}  Kh7 {[%clk 0:00:12]} 26. Qg4 {[%clk 0:00:54]}  Nh6 {[%clk 0:00:11]} 27. Qh5 {[%clk 0:00:53]}  Be6 {[%clk 0:00:10]} 28. Rg1 {[%clk 0:00:50]}  Bf5 {[%clk 0:00:06]} 29. Rg7+ {[%clk 0:00:49]}  Qxg7 {[%clk 0:00:06]} 30. fxg7 {[%clk 0:00:50]}  Bxd3 {[%clk 0:00:06]} 31. cxd3 {[%clk 0:00:49]}  Kxg7 {[%clk 0:00:05]} 32. Qg5+ {[%clk 0:00:49]}  Kh7 {[%clk 0:00:06]} 33. Qf6 {[%clk 0:00:46]}  c5 {[%clk 0:00:06]} 34. f5 {[%clk 0:00:45]}  Rg8 {[%clk 0:00:04]} 35. e6 {[%clk 0:00:44]}  fxe6 {[%clk 0:00:02]} 36. fxe6 {[%clk 0:00:45]}  Rg6 {[%clk 0:00:03]} 37. Qe5 {[%clk 0:00:37]}  Rg1+ {[%clk 0:00:02]} 38. Kc2 {[%clk 0:00:37]}  Rg2+ {[%clk 0:00:03]} 39. Kb3 {[%clk 0:00:36]}  Rg7 {[%clk 0:00:02]} 40. e7 {[%clk 0:00:36]}  Nf7 {[%clk 0:00:02]} 41. Qe4+ {[%clk 0:00:35]}  Rg6 {[%clk 0:00:02]} 42. e8=Q {[%clk 0:00:35]}  Kg7 {[%clk 0:00:03]} 43. Q4e7 {[%clk 0:00:32]}  Rf6 {[%clk 0:00:02]} 44. Q8f8+ {[%clk 0:00:32]}  Kg6 {[%clk 0:00:03]} 45. Qg8+ {[%clk 0:00:32]}  Kf5 {[%clk 0:00:03]} 46. Qgxf7 {[%clk 0:00:33]}  a4+ {[%clk 0:00:02]} 47. Kxa4 {[%clk 0:00:31]}  b3 {[%clk 0:00:02]} 48. Qfxf6# {[%clk 0:00:30]} 1-0


[Site "https://www.chess.com"]

[Event "Titled Tuesday Blitz May 4 2021"]
[White "Svidler, Peter"]
[Black "Lazavik, Denis"]
[WhiteFideId "4102142"]
[BlackFideId "13515110"]
[WhiteElo "2754"]
[BlackElo "2436"]
[Result "0-1"]
[Round "10"]
[TimeControl "180+1"]
[Date "2021.05.04"]
[WhiteClock "0:02:37"]
[BlackClock "0:02:17"]

1. e4 {[%clk 0:03:00]}  e5 {[%clk 0:02:59]} 2. Nf3 {[%clk 0:03:00]}  Nc6 {[%clk 0:02:59]} 3. Bc4 {[%clk 0:03:01]}  Bc5 {[%clk 0:02:59]} 4. c3 {[%clk 0:03:01]}  Nf6 {[%clk 0:02:59]} 5. d3 {[%clk 0:03:02]}  d6 {[%clk 0:02:59]} 6. O-O {[%clk 0:03:01]}  a6 {[%clk 0:02:59]} 7. a4 {[%clk 0:02:58]}  h6 {[%clk 0:02:59]} 8. Re1 {[%clk 0:02:55]}  O-O {[%clk 0:02:58]} 9. h3 {[%clk 0:02:55]}  Be6 {[%clk 0:02:56]} 10. Bxe6 {[%clk 0:02:54]}  fxe6 {[%clk 0:02:57]} 11. b4 {[%clk 0:02:54]}  Ba7 {[%clk 0:02:57]} 12. Ra2 {[%clk 0:02:55]}  Nh5 {[%clk 0:02:56]} 13. Na3 {[%clk 0:02:52]}  Nf4 {[%clk 0:02:47]} 14. Bxf4 {[%clk 0:02:51]}  Rxf4 {[%clk 0:02:48]} 15. Rf1 {[%clk 0:02:44]}  Qf6 {[%clk 0:02:41]} 16. Nc4 {[%clk 0:02:44]}  Ne7 {[%clk 0:02:31]} 17. Ncd2 {[%clk 0:02:43]}  Rf8 {[%clk 0:02:29]} 18. Kh1 {[%clk 0:02:39]}  Ng6 {[%clk 0:02:24]} 19. Qe2 {[%clk 0:02:39]}  Qf7 {[%clk 0:02:19]} 20. Rb2 {[%clk 0:02:38]}  Rf6 {[%clk 0:02:18]} 21. a5 {[%clk 0:02:37]}  Nf4 {[%clk 0:02:17]} 0-1


[Site "https://www.chess.com"]

[Event "Titled Tuesday Blitz May 4 2021"]
[White "Sztokbant, Bernardo Vainzoff"]
[Black "Dogan, Mire Deniz"]
[WhiteFideId "2115956"]
[BlackFideId "6317456"]
[WhiteElo "2264"]
[BlackElo "1850"]
[Result "1-0"]
[Round "10"]
[TimeControl "180+1"]
[Date "2021.05.04"]
[WhiteClock "0:00:05"]
[BlackClock "0:00:03"]

1. e4 {[%clk 0:03:00]}  c5 {[%clk 0:02:57]} 2. Nf3 {[%clk 0:03:01]}  d6 {[%clk 0:02:57]} 3. d4 {[%clk 0:03:01]}  cxd4 {[%clk 0:02:58]} 4. Nxd4 {[%clk 0:03:02]}  Nf6 {[%clk 0:02:57]} 5. Nc3 {[%clk 0:03:02]}  a6 {[%clk 0:02:58]} 6. Be2 {[%clk 0:03:02]}  e5 {[%clk 0:02:52]} 7. Nb3 {[%clk 0:03:02]}  Be7 {[%clk 0:02:52]} 8. O-O {[%clk 0:03:03]}  O-O {[%clk 0:02:52]} 9. a4 {[%clk 0:03:02]}  Be6 {[%clk 0:02:48]} 10. f4 {[%clk 0:03:00]}  exf4 {[%clk 0:02:44]} 11. Bxf4 {[%clk 0:02:59]}  Nc6 {[%clk 0:02:45]} 12. Qd2 {[%clk 0:02:55]}  Ne5 {[%clk 0:02:45]} 13. Kh1 {[%clk 0:02:54]}  Rc8 {[%clk 0:02:38]} 14. Nd4 {[%clk 0:02:41]}  Qb6 {[%clk 0:02:36]} 15. Rab1 {[%clk 0:02:20]}  Nc4 {[%clk 0:02:12]} 16. Bxc4 {[%clk 0:02:15]}  Rxc4 {[%clk 0:02:13]} 17. Rfd1 {[%clk 0:02:11]}  Bg4 {[%clk 0:01:58]} 18. a5 {[%clk 0:01:57]}  Qc5 {[%clk 0:01:25]} 19. Nb3 {[%clk 0:01:54]}  Qh5 {[%clk 0:01:25]} 20. Re1 {[%clk 0:01:48]}  Be6 {[%clk 0:00:58]} 21. Nd4 {[%clk 0:01:42]}  Ng4 {[%clk 0:00:42]} 22. Rbd1 {[%clk 0:01:26]}  Bg5 {[%clk 0:00:37]} 23. h3 {[%clk 0:00:59]}  Rxd4 {[%clk 0:00:32]} 24. Qxd4 {[%clk 0:00:54]}  Bxf4 {[%clk 0:00:33]} 25. Kg1 {[%clk 0:00:45]}  Qh6 {[%clk 0:00:19]} 26. hxg4 {[%clk 0:00:33]}  Bg3 {[%clk 0:00:17]} 27. Ne2 {[%clk 0:00:19]}  Qh2+ {[%clk 0:00:13]} 28. Kf1 {[%clk 0:00:19]}  Bxe1 {[%clk 0:00:11]} 29. Rxe1 {[%clk 0:00:16]}  Bxg4 {[%clk 0:00:12]} 30. Ng1 {[%clk 0:00:11]}  f5 {[%clk 0:00:11]} 31. e5 {[%clk 0:00:11]}  dxe5 {[%clk 0:00:07]} 32. Qxe5 {[%clk 0:00:10]}  f4 {[%clk 0:00:08]} 33. Qd5+ {[%clk 0:00:07]}  Kh8 {[%clk 0:00:07]} 34. Qd6 {[%clk 0:00:07]}  Rg8 {[%clk 0:00:03]} 35. Re4 {[%clk 0:00:05]} 1-0


[Site "https://www.chess.com"]